Cogmind - Beta 13 X1 @@@ ROGUE MODE // 2023.09.18 @ 15:03:27 Player: deadnoob Result: Destroyed by H-55 Commando with Gauss Rifle Performance ------------- Evolutions (3) 1500 Regions Visited (11) 2200 Robots Destroyed (122) 610 Value Destroyed (5807) 5807 Prototype IDs (27) 540 Alien Tech Used (0) 0 Bonus (3708) 3708 TOTAL SCORE: 14365 Bonus ------- High Alert Combat Kills 378 Follower Combat Kills 574 Entered Garrisons 600 Used RIF Installer 2000 Aligned with FarCom 300 Friendly Fire -144 Cogmind --------- Core Integrity 0/700 Matter 86/300 Energy 71/100 System Corruption 5% Temperature Cool (0) Movement Core (50) Location -7/Factory Parts ------- > --- POWER (1) -------- (None) > --- PROPULSION (4) --- (None) > --- UTILITY (6) ------ Modified TNC Relay Coupler [NC] (31) Relay Coupler [NC] (28) Relay Coupler [Swarmer] (36) Relay Coupler [Specialist] (19) > --- WEAPON (2) ------- Datajack > --- INVENTORY (5) ---- Improved Carbon-fiber Leg Relay Coupler [Sentry] (24) Trap Extractor (0/4) Light EM Pulse Cannon Heavy Machine Gun Peak State ------------ > --- POWER ------------ Light Antimatter Reactor > --- PROPULSION ------- Light Treads Armored Treads Armored Treads Biometal Leg > --- UTILITY ---------- Huge Storage Unit Modified TNC Relay Coupler [NC] Relay Coupler [Swarmer] Relay Coupler [Specialist] Relay Coupler [Hunter] > --- WEAPON ----------- Railgun Hypervelocity Mass Driver > --- INVENTORY -------- Hybrid Antimatter Reactor Light Quantum Reactor Improved Carbon-fiber Leg Advanced Heat Sink Superbattery High-capacity Matter Pod Transmission Jammer Relay Coupler [NC] Relay Coupler [Sentry] Relay Coupler [Hunter] Relay Coupler [Heavy] Long-range Tractor Beam Trap Extractor Improved Trap Extractor Light EM Pulse Cannon Light EM Pulse Cannon Heavy Machine Gun Heavy Machine Gun Heavy Machine Gun Heavy Machine Gun Hammer [Rating: 66] Favorites ----------- Power Improved Ion Engine Engine Improved Ion Engine Power Core Light Nuclear Core Reactor Light Antimatter Reactor Propulsion Light Treads Treads Light Treads Leg Biometal Leg Wheel Armored Wheel Utility Huge Storage Unit Device Seismic Detector Storage Huge Storage Unit Processor Modified TNC Hackware Relay Coupler [NC] Protection Light Armor Plating Weapon Heavy Laser Energy Gun Heavy Laser Ballistic Gun Heavy Assault Rifle Ballistic Cannon Hypervelocity Mass Driver Launcher Grenade Launcher Special Weapon Remote Datajack Impact Weapon Hammer Slashing Weapon Axe Special Melee Weapon Advanced Datajack Build | -11 -10 -10 -10 -9 -8 -8 -8 -8 -7 -7 -7 ------- Run | Jun Mat Min Exi Min Mat Gar Mat Gar Fac Gar Fac Slots Evolved 6 | . . . . . 4 . . . 2 . . Power . | . . . . . . . . . . . . Propulsion 2 | . . . . . 2 . . . . . . Utility 4 | . . . . . 2 . . . 2 . . Weapon . | . . . . . . . . . . . . Parts Attached 214 | 1 17 11 . 5 10 45 18 26 23 48 10 Power 10 | . . 2 . . . 2 2 1 2 1 . Engine 5 | . . 1 . . . 1 2 . 1 . . Core 4 | . . 1 . . . 1 . 1 1 . . Reactor 1 | . . . . . . . . . . 1 . Propulsion 41 | . 3 3 . 1 2 10 4 7 4 7 . Treads 34 | . 3 3 . 1 2 6 4 7 4 4 . Leg 5 | . . . . . . 2 . . . 3 . Wheel 2 | . . . . . . 2 . . . . . Hover . | . . . . . . . . . . . . Flight . | . . . . . . . . . . . . Utility 54 | . 2 . . . 4 10 2 6 9 15 6 Device 13 | . 1 . . . . 2 . 1 5 3 1 Storage 4 | . 1 . . . 1 1 1 . . . . Processor 4 | . . . . . 2 . . . 2 . . Hackware 18 | . . . . . . 2 1 4 . 6 5 Protection 15 | . . . . . 1 5 . 1 2 6 . Artifact . | . . . . . . . . . . . . Weapon 109 | 1 12 6 . 4 4 23 10 12 8 25 4 Energy Gun 18 | . . 1 . . . 3 4 6 3 1 . Energy Cannon . | . . . . . . . . . . . . Ballistic Gun 40 | 1 7 4 . 2 2 9 1 1 3 9 1 Ballistic Cannon 2 | . . . . . . . . . . 1 1 Launcher 15 | . 5 1 . 2 . 7 . . . . . Special Weapon 15 | . . . . . . 1 3 3 . 7 1 Impact Weapon 8 | . . . . . . . . . 2 6 . Slashing Weapon 9 | . . . . . 2 3 2 2 . . . Piercing Weapon . | . . . . . . . . . . . . Special Melee Weapon 2 | . . . . . . . . . . 1 1 Unidentified Prototypes . | . . . . . . . . . . . . Parts Lost 55 | . 2 6 . . . 19 1 . 6 12 9 Power 3 | . . 1 . . . 1 . . . . 1 Propulsion 21 | . . 3 . . . 6 1 . 2 5 4 Utility 16 | . . . . . . 6 . . 4 5 1 Weapon 15 | . 2 2 . . . 6 . . . 2 3 Highest Loss Streak 9 | . 1 4 . . . 7 1 . 4 3 9 To Critical Strikes 1 | . . 1 . . . . . . . . . Average Slot Usage (%) 98 | . 99 99 100 100 99 95 100 98 97 97 96 Engine 5 | . 14 5 14 14 9 3 9 8 2 . . Core 2 | . . 8 . . . 3 . . 4 1 . Reactor 1 | . . . . . . . . . . 5 6 Treads 28 | . 18 28 28 28 35 31 36 36 29 24 22 Leg 2 | . 9 . . . . 1 . . . 5 6 Device 7 | . 13 14 14 14 9 4 . 2 9 4 2 Storage 9 | . 14 14 14 14 9 9 9 9 7 7 7 Processor 5 | . . . . . 8 9 9 5 6 7 7 Hackware 8 | . . . . . . 1 18 17 10 15 25 Protection 4 | . . . . . 8 9 . . 7 8 . Energy Gun 4 | . . 3 14 14 5 2 5 13 4 1 . Ballistic Gun 11 | . 25 23 14 10 8 11 6 . 6 7 6 Special Weapon 1 | . . . . . . . 5 2 1 1 2 Naked Turns . | . . . . . . . . . . . . Heaviest Build 111 | 11 29 34 34 35 57 67 96 98 108 111 110 Greatest Support 80 | 20 40 40 40 40 80 80 80 80 80 80 60 Greatest Overweight (x) 36 | . 1 . . . . 5 1 1 1 2 36 Average Overweight (x) . | . . . . . . 1 . 1 1 1 1 Largest Inventory Capacity 25 | 8 15 15 15 15 20 20 25 25 25 25 25 Average Capacity 20 | 8 12 15 15 15 16 20 22 25 25 25 24 Most Carried 25 | 6 15 15 15 15 16 20 21 25 25 25 25 Average Carried 18 | 6 9 14 14 14 14 16 19 24 23 23 24 Final Capacity 25 | 8 15 15 15 15 20 20 25 25 25 25 5 Final Carried 25 | 6 15 15 15 15 16 20 21 25 24 24 5 Class Distribution -------------------- 41% | Bothacker-Mutant 32% | Mutant 17% | Scavenger-Mutant 9% | Botlord-Mutant Dominant Class ---------------- Mutant | -10/Materials Mutant | -10/Mines Mutant | -10/Exiles Mutant | -9/Mines Scavenger-Mutant | -8/Materials Scavenger-Mutant | -8/Garrison Bothacker-Mutant | -8/Materials Bothacker-Mutant | -8/Garrison Bothacker-Mutant | -7/Factory Bothacker-Mutant | -7/Garrison Botlord-Mutant | -7/Factory Resources | -11 -10 -10 -10 -9 -8 -8 -8 -8 -7 -7 -7 ----------- Run | Jun Mat Min Exi Min Mat Gar Mat Gar Fac Gar Fac Matter Collected 4043 | 199 123 571 . 95 56 1046 212 458 448 811 24 Remotely 203 | . . . . . . . . . 137 66 . Salvage Created 3754 | . 283 394 . 116 56 979 318 425 540 583 60 Parts 237 | . 26 29 . 17 2 62 16 22 31 24 8 Haulers Intercepted 3 | . 1 . . . . . 2 . . . . Recyclers Shooed 2 | . . 2 . . . . . . . . . Parts Field Recycled . | . . . . . . . . . . . . Retrieved Matter . | . . . . . . . . . . . . Parts Self-Destructed . | . . . . . . . . . . . . Prevented . | . . . . . . . . . . . . Kills | -11 -10 -10 -10 -9 -8 -8 -8 -8 -7 -7 -7 ------- Run | Jun Mat Min Exi Min Mat Gar Mat Gar Fac Gar Fac Combat Hostiles Destroyed 107 | . 9 16 . 9 1 36 4 8 10 13 1 Melee 6 | . . . . . 1 1 . . . 4 . Guns 65 | . 2 9 . 2 . 21 4 8 10 8 1 AOE 35 | . 7 7 . 7 . 14 . . . . . Classes Destroyed 16 | . 7 1 . 1 . 3 . 1 . 2 1 Worker 5 | . 3 . . 1 . . . . . . 1 Builder 2 | . 1 1 . . . . . . . . . Tunneler 3 | . 1 . . 1 . . . . 1 . . Hauler 3 | . 1 . . . . . 2 . . . . Operator 1 | . 1 . . . . . . . . . . Watcher 1 | . . . . . . . . . . 1 . Swarmer 29 | . 3 8 . 7 . 10 . . . 1 . Cutter 4 | . . . . . . 3 . . . 1 . Grunt 43 | . 6 6 . 1 . 10 3 3 6 8 . Brawler 1 | . . . . 1 . . . . . . . Duelist 2 | . . . . . . 1 . 1 . . . Protector 1 | . . . . . . . . . . . 1 Sentry 18 | . . 2 . . 1 9 1 3 2 . . Specialist 3 | . . . . . . . . . . 3 . Hunter 2 | . . . . . . . . 1 1 . . Programmer 4 | . . . . . . 3 . . 1 . . Best Kill Streak 6 | . 5 4 . 4 1 6 2 4 5 3 2 Combat Bots Only 6 | . 3 3 . 4 1 6 2 4 5 3 1 Max Kills in Single Turn 3 | . 3 3 . 2 1 3 1 1 1 1 2 Gunslinging . | . . . . . . . . . . . . Exploded 3 | . 3 3 . 2 . 3 . . . . . Melee 1 | . . . . . 1 1 . . . 1 . Uniques/NPCs Destroyed . | . . . . . . . . . . . . Combat | -11 -10 -10 -10 -9 -8 -8 -8 -8 -7 -7 -7 -------- Run | Jun Mat Min Exi Min Mat Gar Mat Gar Fac Gar Fac Damage Taken 9713 | . 384 708 . 162 15 2840 393 600 946 2143 1522 Core 1251 | . 35 70 . 29 . 293 55 66 80 168 455 Absorbed by Shields 1351 | . . . . . . . . . 286 1065 . Ignored by Resistances 105 | . . . . . . 105 . . . . . Regen/Repaired (Parts) 63 | . . . . . . . 63 . . . . Core Remaining (%) 56 | 100 . . . 46 . . . 24 . . . Volleys Fired 346 | . 24 42 . 11 . 95 25 38 42 56 13 Largest 2 | . 2 2 . 2 . 2 2 2 2 2 2 Hottest 138 | . 40 83 . 96 . 138 138 138 138 97 101 Shots Fired 574 | . 34 79 . 15 . 160 29 62 84 92 19 Gun 472 | . 20 74 . 8 . 133 23 52 84 71 7 Cannon 9 | . . . . . . . . . . 4 5 Launcher 53 | . 14 5 . 7 . 27 . . . . . Special 40 | . . . . . . . 6 10 . 17 7 Kinetic 328 | . 20 73 . 4 . 98 11 2 46 62 12 Thermal 153 | . . 1 . 4 . 35 12 50 38 13 . Explosive 53 | . 14 5 . 7 . 27 . . . . . Electromagnetic . | . . . . . . . . . . . . Robot Hit Streak 28 | . 12 18 . 28 . 28 8 15 8 11 6 Robot Miss Streak 5 | . 3 2 . . . 3 2 2 5 3 4 Penetration Max 1 | . . . . . . . . . . . 1 Secondary Targets 10 | . . 2 . . . 1 . 2 4 1 . Max Gunslinging Chain 1 | . . 1 . . . 1 . 1 1 1 . Shots Hit Robots 419 | . 19 58 . 10 3 118 21 37 59 83 11 Core Hits 219 | . 24 37 . 13 1 73 8 15 22 22 4 Critical Kills 4 | . . . . . . 1 1 . . 1 1 Critical Parts Destroyed 13 | . . . . . . 1 . . 3 6 3 Critical Strikes 27 | . . . . 1 . 4 2 3 6 7 4 Burn 10 | . . . . 1 . 2 1 3 3 . . Destroy 13 | . . . . . . 2 1 . 3 3 4 Smash 4 | . . . . . . . . . . 4 . Melee Attacks 80 | . . . . . 10 13 3 7 9 38 . Impact 46 | . . . . . . . . . 9 37 . Slashing 33 | . . . . . 10 13 3 7 . . . Piercing . | . . . . . . . . . . . . Sneak Attacks 2 | . . . . . 1 . . . . 1 . Combat Hostiles . | . . . . . . . . . . . . Follow-up Attacks . | . . . . . . . . . . . . Damage Inflicted 10495 | . 1041 891 . 580 139 3827 317 647 1147 1563 343 Guns 5936 | . 139 473 . 144 . 1985 317 647 1147 884 200 Cannons 194 | . . . . . . . . . . 74 120 Explosions 3529 | . 902 407 . 407 . 1813 . . . . . Melee 751 | . . . . . 139 29 . . . 583 . Ramming 85 | . . 11 . 29 . . . . . 22 23 Kinetic 3988 | . 139 457 . 75 . 1383 155 41 634 784 320 Thermal 2142 | . . 16 . 69 . 602 162 606 513 174 . Explosive 3479 | . 852 407 . 407 . 1813 . . . . . Electromagnetic 50 | . 50 . . . . . . . . . . Impact 583 | . . . . . . . . . . 583 . Slashing 168 | . . . . . 139 29 . . . . . Piercing . | . . . . . . . . . . . . Highest Corruption 6 | . . . . . . 6 6 6 . 1 5 Average Corruption 3 | . . . . . . 5 6 6 . 1 1 Corruption Purged . | . . . . . . . . . . . . Corruption Blocked . | . . . . . . . . . . . . Effects 94 | . . . . . . 37 10 32 . 11 4 Message Errors 23 | . . . . . . 8 . 12 . 1 2 Matter Fused 18 | . . . . . . 6 3 6 . 3 . Heat Flow Errors 12 | . . . . . . 9 . 1 . 2 . Energy Discharges 13 | . . . . . . 5 3 5 . . . Parts Rejected 1 | . . . . . . . . . . 1 . Data Loss (minor) 15 | . . . . . . 5 1 6 . 3 . Data Loss (major) 4 | . . . . . . 3 1 . . . . Misfires 3 | . . . . . . . 1 1 . . 1 Alerts 3 | . . . . . . 1 . . . 1 1 Weapon Failures 2 | . . . . . . . 1 1 . . . Overload Shots . | . . . . . . . . . . . . Overflow Damage 307 | . 88 28 . 4 . 55 . . . 129 3 Projectiles . | . . . . . . . . . . . . Explosions 175 | . 88 28 . 4 . 55 . . . . . Melee 132 | . . . . . . . . . . 129 3 Knockbacks 3 | . . . . . . . . . . 2 1 Impact . | . . . . . . . . . . . . Kinetic 3 | . . . . . . . . . . 2 1 Secondary . | . . . . . . . . . . . . Self-Inflicted Damage 579 | . 186 . . 44 . 349 . . . . . Shots 21 | . 5 . . 2 . 14 . . . . . Rammed 10 | . . 3 . 2 . . . . . 4 1 Targets Rammed 11 | . . 3 . 3 . . . . . 4 1 Kicked . | . . . . . . . . . . . . Crushed 1 | . . . . 1 . . . . . . . Highest Temperature 459 | . 18 35 . 123 . 438 233 459 290 326 138 Average Temperature 85 | . 8 9 . 50 . 113 82 106 105 60 59 Received Heat Transfer 2696 | . 108 261 . 18 . 936 153 315 403 448 54 Effects 8 | . . . . . . 5 . 2 . 1 . Shutdowns 3 | . . . . . . 3 . . . . . Energy Bleed 1 | . . . . . . 1 . . . . . Interference 1 | . . . . . . . . 1 . . . Matter Decay 1 | . . . . . . . . 1 . . . Damage (minor) 2 | . . . . . . 1 . . . 1 . Siege Activations . | . . . . . . . . . . . . Robots Corrupted . | . . . . . . . . . . . . Combat Hostiles . | . . . . . . . . . . . . Parts Fried 1 | . . . . . . . . . . 1 . Impact Corruptions 7 | . . . . . . . . . . 6 1 Robots Melted . | . . . . . . . . . . . . Combat Hostiles . | . . . . . . . . . . . . Parts Melted 10 | . . . . . . 3 2 4 1 . . Heat Transferred 4602 | . . 37 . 222 . 1198 370 1332 1147 296 . Parts Sabotaged . | . . . . . . . . . . . . Parts Stolen . | . . . . . . . . . . . . Parts Stripped . | . . . . . . . . . . . . Power Chain Reactions 1 | . 1 . . . . . . . . . . Missiles Intercepted . | . . . . . . . . . . . . Alert | -11 -10 -10 -10 -9 -8 -8 -8 -8 -7 -7 -7 ------- Run | Jun Mat Min Exi Min Mat Gar Mat Gar Fac Gar Fac Peak Influence 1075 | . 324 503 . 191 110 904 472 548 314 1075 597 Initial 564 | . . 126 . . 26 . 440 39 287 49 564 Average 361 | . 142 384 . 65 57 503 330 279 204 622 504 Maximum Alert Level 3 | . 1 2 . . . 3 2 2 1 3 2 Low Security (%) 32 | 100 61 . . 100 100 22 25 23 54 9 . Level 1 31 | . 38 59 . . . 19 21 63 45 14 14 Level 2 21 | . . 40 . . . 13 53 13 . 34 85 Level 3 14 | . . . . . . 43 . . . 41 . Level 4 . | . . . . . . . . . . . . Level 5 . | . . . . . . . . . . . . High Security . | . . . . . . . . . . . . Max Security . | . . . . . . . . . . . . Squads Dispatched 9 | . 3 1 . . . . . . 4 . 1 Investigation 6 | . 3 1 . . . . . . 2 . . Extermination 1 | . . . . . . . . . 1 . . Reinforcement 2 | . . . . . . . . . 1 . 1 Assault . | . . . . . . . . . . . . Garrison . | . . . . . . . . . . . . Intercept . | . . . . . . . . . . . . Searches Triggered . | . . . . . . . . . . . . Construction Impeded . | . . . . . . . . . . . . Haulers Reinforced . | . . . . . . . . . . . . Active Scanning Responses . | . . . . . . . . . . . . Cargo Convoy Interrupts 1 | . . . . . . . . . . . 1 Stealth | -11 -10 -10 -10 -9 -8 -8 -8 -8 -7 -7 -7 --------- Run | Jun Mat Min Exi Min Mat Gar Mat Gar Fac Gar Fac Distress Signals 1 | . 1 . . . . . . . . . . Communications Jammed . | . . . . . . . . . . . . Distress Signals . | . . . . . . . . . . . . Times Spotted 194 | . 15 20 . 9 6 38 12 15 11 49 19 Peak Tracking Total 10 | . 5 3 . 4 3 5 3 4 5 10 10 Tactical Retreats 17 | . 1 2 . . . 1 . . 1 12 . Traps | -11 -10 -10 -10 -9 -8 -8 -8 -8 -7 -7 -7 ------- Run | Jun Mat Min Exi Min Mat Gar Mat Gar Fac Gar Fac Traps Triggered 15 | . . . . . . 3 . 7 . 5 . Indirectly . | . . . . . . . . . . . . Trap Hack Attempts . | . . . . . . . . . . . . Triggered . | . . . . . . . . . . . . Disarmed . | . . . . . . . . . . . . Reprogrammed . | . . . . . . . . . . . . Reused . | . . . . . . . . . . . . Traps Extracted . | . . . . . . . . . . . . Installed . | . . . . . . . . . . . . Triggered 1 | . . . . . . . . . . 1 . Machines | -11 -10 -10 -10 -9 -8 -8 -8 -8 -7 -7 -7 ---------- Run | Jun Mat Min Exi Min Mat Gar Mat Gar Fac Gar Fac Machines Disabled 20 | . 5 6 . . . 2 . 3 . 4 . Max in Single Turn 2 | . 2 2 . . . 1 . 1 . 1 . Garrison Relay 10 | . . . . . . 3 . 3 . 4 . Machines Repaired . | . . . . . . . . . . . . Machines Sabotaged . | . . . . . . . . . . . . Overloaded Fab Kills . | . . . . . . . . . . . . Hacking | -11 -10 -10 -10 -9 -8 -8 -8 -8 -7 -7 -7 --------- Run | Jun Mat Min Exi Min Mat Gar Mat Gar Fac Gar Fac Machines Accessed 26 | . 8 1 2 . 3 1 4 1 4 1 1 Terminals 17 | . 6 . . . 2 1 2 1 3 1 1 Fabricators . | . . . . . . . . . . . . Repair Stations 1 | . . . . . . . 1 . . . . Recycling Units 2 | . 2 . . . . . . . . . . Scanalyzers . | . . . . . . . . . . . . Garrison Access 3 | . . . . . 1 . 1 . 1 . . Total Hacks 61 | . 22 1 2 . 10 2 9 2 9 3 1 Successful 26 | . 9 1 2 . 5 . 6 . 2 1 . Failed 34 | . 12 . . . 5 2 3 2 7 2 1 Catastrophic 7 | . 1 . . . . 1 2 1 1 . 1 Database Lockouts 1 | . 1 . . . . . . . . . . Manual 22 | . 10 . 1 . 7 . 3 . . . 1 Terminals 49 | . 18 . . . 9 2 6 2 8 3 1 Fabricators . | . . . . . . . . . . . . Repair Stations 2 | . . . . . . . 2 . . . . Recycling Units 4 | . 4 . . . . . . . . . . Scanalyzers . | . . . . . . . . . . . . Garrison Access 3 | . . . . . 1 . 1 . 1 . . Terminal Hacks 16 | . 6 1 2 . 3 . 2 . 1 1 . Record 1 | . . . 1 . . . . . . . . Robot Analysis 5 | . 1 . . . 3 . . . 1 . . Prototype ID Bank 2 | . 2 . . . . . . . . . . Open Door 1 | . . 1 . . . . . . . . . Emergency Access Points 1 | . . . . . . . . . . 1 . Unreport Threat 2 | . . . . . . . 2 . . . . Locate Traps 2 | . 2 . . . . . . . . . . Hauler Manifests 1 | . 1 . . . . . . . . . . Derelict Proto ID Bank 1 | . . . 1 . . . . . . . . Fabricator Hacks . | . . . . . . . . . . . . Repair Station Hacks 2 | . . . . . . . 2 . . . . Scan Component 1 | . . . . . . . 1 . . . . Repair 1 | . . . . . . . 1 . . . . Recycling Unit Hacks . | . . . . . . . . . . . . Scanalyzer . | . . . . . . . . . . . . Garrison Access Hacks 3 | . . . . . 1 . 1 . 1 . . Unlock Access 3 | . . . . . 1 . 1 . 1 . . Unauthorized Hacks 5 | . 3 . . . 1 . 1 . . . . Terminals 3 | . 1 . . . 1 . 1 . . . . Assimilate 2 | . . . . . 1 . 1 . . . . Search 1 | . 1 . . . . . . . . . . Fabricators . | . . . . . . . . . . . . Repair Stations . | . . . . . . . . . . . . Recycling Units 2 | . 2 . . . . . . . . . . Tunnel 2 | . 2 . . . . . . . . . . Scanalyzers . | . . . . . . . . . . . . Garrison Access . | . . . . . . . . . . . . Data Cores Recovered . | . . . . . . . . . . . . Used . | . . . . . . . . . . . . Hacking Detections 19 | . 7 . . . 2 1 3 1 3 1 1 Full Trace Events 5 | . . . . . . 1 . 1 2 1 . Feedback Events . | . . . . . . . . . . . . Feedback Blocked . | . . . . . . . . . . . . Robot Schematics Acquired . | . . . . . . . . . . . . Robots Built . | . . . . . . . . . . . . Authchips . | . . . . . . . . . . . . Time . | . . . . . . . . . . . . Total Robot Build Rating . | . . . . . . . . . . . . Part Schematics Acquired . | . . . . . . . . . . . . Parts Built . | . . . . . . . . . . . . Authchips . | . . . . . . . . . . . . Time . | . . . . . . . . . . . . Total Part Build Rating . | . . . . . . . . . . . . Parts Repaired 1 | . . . . . . . 1 . . . . Time 26 | . . . . . . . 26 . . . . Parts Recycled . | . . . . . . . . . . . . Recycled Matter . | . . . . . . . . . . . . Retrieved Matter . | . . . . . . . . . . . . Retrieved Components . | . . . . . . . . . . . . Parts Scanalyzed . | . . . . . . . . . . . . Part Schematics Acquired . | . . . . . . . . . . . . Parts Damaged . | . . . . . . . . . . . . Bothacking | -11 -10 -10 -10 -9 -8 -8 -8 -8 -7 -7 -7 ------------ Run | Jun Mat Min Exi Min Mat Gar Mat Gar Fac Gar Fac Used RIF Installer 4 | . . . . . . 1 . 1 . 2 . Structural Interface 1 | . . . . . . . . . . 1 . Program Shield 1 | . . . . . . . . 1 . . . Autoassimilate 1 | . . . . . . . . . . 1 . Robots Hacked 24 | . . . . . . . 3 5 . 11 5 Non-combat 2 | . . . . . . . . . . . 2 Combat 22 | . . . . . . . 3 5 . 11 3 Autoassimilated 2 | . . . . . . . . . . . 2 Robot Hacks Applied 23 | . . . . . . . 4 5 . 11 3 parse_system 1 | . . . . . . . 1 . . . . amplify_resonance 5 | . . . . . . . . . . 4 1 disable_weapons 1 | . . . . . . . . . . 1 . go_dormant 1 | . . . . . . . . . . 1 . overwrite_iff 3 | . . . . . . . 2 . . 1 . formatsys_high 12 | . . . . . . . 1 5 . 4 2 Relay Couplers Released 48 | . . . . . . 14 . 13 . 21 . Machine Destruction 45 | . . . . . . 14 . 13 . 18 . Programmers 3 | . . . . . . . . . . 3 . Attached 18 | . . . . . . 2 1 4 . 6 5 Fabnet Peak Effective % . | . . . . . . . . . . . . Robots Rewired 3 | . . . . . . 3 . . . . . Allies Hacked 1 | . . . . . . . . . . . 1 Hacks Repelled . | . . . . . . . . . . . . Allies | -11 -10 -10 -10 -9 -8 -8 -8 -8 -7 -7 -7 -------- Run | Jun Mat Min Exi Min Mat Gar Mat Gar Fac Gar Fac Total Allies 23 | . . 1 . . 1 3 4 5 . 5 4 Largest Group 4 | . . 1 . . 1 4 2 2 2 2 3 Highest-Rated Group 163 | . . 31 . . 10 58 37 32 32 64 163 Highest-Rated Ally 110 | . . 31 . . 10 16 29 16 16 32 110 Total Orders 1 | . . . . . . 1 . . . . . STAY 1 | . . . . . . 1 . . . . . Ally Attacks 104 | . . 7 . . . 6 13 12 5 39 22 Total Damage 2113 | . . 127 . . . 89 149 227 63 1038 420 Kills 20 | . . 3 . . . . 1 3 . 9 4 Allies Corrupted . | . . . . . . . . . . . . Allies Melted . | . . . . . . . . . . . . Intel | -11 -10 -10 -10 -9 -8 -8 -8 -8 -7 -7 -7 ------- Run | Jun Mat Min Exi Min Mat Gar Mat Gar Fac Gar Fac Robot Analysis Total 5 | . 1 . . . 3 . . . 1 . . Derelict Logs Recovered 4 | . . 2 . 2 . . . . . . . Drone Launches . | . . . . . . . . . . . . Drone Recoveries . | . . . . . . . . . . . . Exploration | -11 -10 -10 -10 -9 -8 -8 -8 -8 -7 -7 -7 ------------- Run | Jun Mat Min Exi Min Mat Gar Mat Gar Fac Gar Fac Turns Passed 11588 | 2 1176 1267 535 688 433 1784 432 1271 1295 2056 649 Spaces Moved 4896 | 1 501 665 323 392 191 827 165 445 455 691 240 Core 5 | . . . . . . . . . . . 5 Treads 4511 | . 413 665 323 392 191 536 165 445 455 691 235 Legs 89 | 1 88 . . . . . . . . . . Wheels 291 | . . . . . . 291 . . . . . Hover . | . . . . . . . . . . . . Flight . | . . . . . . . . . . . . Fastest Speed 50 | 120 120 160 165 165 162 150 160 240 240 240 50 Average Speed 192 | 120 153 161 165 165 162 162 189 240 240 245 249 Slowest Speed 1850 | 120 190 165 165 165 162 165 240 240 240 330 1850 Overloaded Moves . | . . . . . . . . . . . . Propulsion Burnouts . | . . . . . . . . . . . . Robots Hopped . | . . . . . . . . . . . . Cave-ins Triggered . | . . . . . . . . . . . . Exploration Rate (%) 50 | 2 71 99 70 85 19 75 20 60 14 82 9 Regions Visited 11 Branch Regions 3 Pre-discovered Areas 5 | . 2 . 1 2 . . . . . . . Known Exits Taken 3 | . . . . . 1 . 1 . 1 . . Unknown Exits Taken 5 | 1 1 1 1 1 . . . . . . . Scrap Searched 4 | . . 2 . 2 . . . . . . . Spaces Dug 37 | . 10 . . . 4 11 3 1 6 2 . Terrain Destroyed 232 | . 49 27 . 53 4 86 3 1 7 2 . Melee 21 | . . . . . 4 5 3 1 6 2 . Projectile 1 | . . . . . . . . . 1 . . AOE 210 | . 49 27 . 53 . 81 . . . . . Terrain Rammed . | . . . . . . . . . . . . Walls Destroyed . | . . . . . . . . . . . . Machines Disabled . | . . . . . . . . . . . . Actions | -11 -10 -10 -10 -9 -8 -8 -8 -8 -7 -7 -7 --------- Run | Jun Mat Min Exi Min Mat Gar Mat Gar Fac Gar Fac Total 6339 | 1 874 796 326 417 296 1073 249 580 559 897 271 Wait 580 | . 311 59 . . 77 50 27 23 11 17 5 Move 4888 | . 500 664 322 391 191 826 165 444 455 690 240 Hop . | . . . . . . . . . . . . Pick Up 102 | . 16 10 2 3 5 18 5 14 8 20 1 Fast Attach 35 | . 1 2 . . 1 11 2 3 5 8 2 Attach 58 | . 2 5 . . 4 15 2 4 11 13 2 Detach 18 | . . . . . 1 6 1 1 5 4 . Swap 121 | 1 14 4 . 5 5 19 14 19 7 27 6 Drop 65 | . 6 7 2 4 2 7 5 13 6 12 1 Fire 346 | . 24 42 . 11 . 95 25 38 42 56 13 Melee 80 | . . . . . 10 13 3 7 9 38 . Ram . | . . . . . . . . . . . . Kick . | . . . . . . . . . . . . Crush 11 | . . 3 . 3 . . . . . 4 1 Escape Stasis 22 | . . . . . . . . 14 . 8 . Rewire 13 | . . . . . . 13 . . . . . Trap . | . . . . . . . . . . . . Miscellaneous . | . . . . . . . . . . . . Route ------- -11/Junkyard -10/Materials (discovered 4 exits: [*Mat x2] / *Min / [*Sub]) -10/Mines (discovered 3 exits: [*Mat x2] / *Exi) -10/Exiles -9/Mines (discovered 2 exits: *Mat x2) -8/Materials -8/Garrison (discovered 4 exits: *Mat x4) -8/Materials -8/Garrison (discovered 2 exits: *Fac x2) -7/Factory (discovered 2 exits: [*Low] / Gar) -7/Garrison (discovered 2 exits: *Fac x2) -7/Factory (discovered 1 exit: [*Sto]) History --------- Turn | Location | Event 3 | -11/Junkyard | Discovered new exit (range 0) 3 | -11/Junkyard | Entered Materials 34 | -10/Materials | Central database locked down 300 | -10/Materials | Build established: Mutant 619 | -10/Materials | Discovered new exit (range 5) 853 | -10/Materials | Discovered new exit (range 11) 890 | -10/Materials | Discovered new exit (range 7) 988 | -10/Materials | Discovered new exit (range 11) 1179 | -10/Materials | Entered Mines 1222 | -10/Mines | Discovered new exit (range 13) 1567 | -10/Mines | Discovered new exit (range 7) 1632 | -10/Mines | Met a Derelict shopkeep closing up shop 1820 | -10/Mines | Received a Mining Laser from a helpful Derelict 1907 | -10/Mines | Learned Materials garrison access intel 1920 | -10/Mines | Learned Materials terminal intel 2013 | -10/Mines | Deemed a non-threat by the Exiles lab entrance 2013 | -10/Mines | Discovered new exit (range 5) 2122 | -10/Mines | Joined a pair of Derelicts in attacking an 0b10 outpost 2186 | -10/Mines | Lost 4 parts (1p1n2w) 2244 | -10/Mines | A weapon hastily lodged in a ceiling crevice suddenly fell to the ground 2446 | -10/Mines | Entered Exiles 2488 | -10/Exiles | Met 8R-AWN 2516 | -10/Exiles | Met EX-HEX 2610 | -10/Exiles | Met EX-DEC 2640 | -10/Exiles | Learned location of Zion (-7) 2742 | -10/Exiles | Met EX-BIN 2765 | -10/Exiles | Aligned with FarCom system 2767 | -10/Exiles | Given EX-Vault access code 2809 | -10/Exiles | Opened EX-Vault 2822 | -10/Exiles | Found Superbattery 2828 | -10/Exiles | Found Modified TNC 2862 | -10/Exiles | Warned to stay clear of 0b10 Research branches 2968 | -10/Exiles | Discovered new exit (range 10) 2981 | -10/Exiles | Stole two prototypes: Superbattery, Modified TNC 2981 | -10/Exiles | Entered Mines 3014 | -9/Mines | Met a Derelict bent on vengeance 3217 | -9/Mines | Discovered new exit (range 7) 3360 | -9/Mines | Core integrity fell below 50% 3427 | -9/Mines | Discovered new exit (range 8) 3669 | -9/Mines | Entered Materials 3669 | -8/Materials | Evolved 4 slots: Propulsion x2, Utility x2 3670 | -8/Materials | Loaded intel: 12 terminal locations 3671 | -8/Materials | Loaded intel: 1 garrison access location 3982 | -8/Materials | Build established: Scavenger-Mutant 4102 | -8/Materials | Identified exit to Garrison 4102 | -8/Materials | Entered Garrison 4102 | -8/Garrison | Accompanied by 1 ally 4257 | -8/Garrison | Triggered checkpoint 4279 | -8/Garrison | Garrison Relay disabled 4345 | -8/Garrison | Triggered checkpoint 4403 | -8/Garrison | Discovered new exit (range 5) 4500 | -8/Garrison | Triggered checkpoint 4502 | -8/Garrison | Triggered checkpoint 4593 | -8/Garrison | Lost 7 parts (4n1u2w) 4831 | -8/Garrison | Discovered new exit (range 10) 4898 | -8/Garrison | Triggered checkpoint 4911 | -8/Garrison | Garrison Relay disabled 5016 | -8/Garrison | Triggered checkpoint 5130 | -8/Garrison | Lost 4 parts (1n2u1w) 5145 | -8/Garrison | Discovered new exit (range 10) 5400 | -8/Garrison | Triggered checkpoint 5447 | -8/Garrison | Discovered new exit (range 12) 5496 | -8/Garrison | Triggered checkpoint 5597 | -8/Garrison | Core integrity fell below 50% 5613 | -8/Garrison | Garrison Relay disabled 5666 | -8/Garrison | Lost 3 parts (1n1u1w) 5681 | -8/Garrison | Installed Relay Interface Framework 5886 | -8/Garrison | Entered Materials 6028 | -8/Materials | Build established: Bothacker-Mutant 6093 | -8/Materials | Repaired Lgt. Treads 6318 | -8/Materials | Identified exit to Garrison 6318 | -8/Materials | Entered Garrison 6391 | -8/Garrison | Expanded RIF knowledge: Program Shield 6612 | -8/Garrison | Garrison Relay disabled 6761 | -8/Garrison | Triggered checkpoint 6781 | -8/Garrison | Triggered checkpoint 6943 | -8/Garrison | Discovered new exit (range 13) 6994 | -8/Garrison | Triggered checkpoint 7048 | -8/Garrison | Garrison Relay disabled 7324 | -8/Garrison | Discovered new exit (range 12) 7426 | -8/Garrison | Triggered checkpoint 7458 | -8/Garrison | Garrison Relay disabled 7589 | -8/Garrison | Entered Factory 7589 | -7/Factory | Accompanied by 2 allies 7589 | -7/Factory | Evolved 2 slots: Utility x2 7591 | -7/Factory | FarCom data flow suspended 8028 | -7/Factory | Discovered new exit (range 11) 8494 | -7/Factory | Lost 4 parts (1n3u) 8884 | -7/Factory | Identified exit to Garrison 8884 | -7/Factory | Entered Garrison 8928 | -7/Garrison | Triggered checkpoint 8986 | -7/Garrison | Garrison Relay disabled 9183 | -7/Garrison | Lost 3 parts (3n) 9236 | -7/Garrison | Triggered checkpoint 9352 | -7/Garrison | Triggered checkpoint 9400 | -7/Garrison | Garrison Relay disabled 9652 | -7/Garrison | Triggered checkpoint 9704 | -7/Garrison | Triggered checkpoint 9868 | -7/Garrison | Discovered new exit (range 10) 10058 | -7/Garrison | Expanded RIF knowledge: Structural Interface 10118 | -7/Garrison | Triggered checkpoint 10147 | -7/Garrison | Garrison Relay disabled 10319 | -7/Garrison | Lost 3 parts (1n2u) 10425 | -7/Garrison | Discovered new exit (range 15) 10469 | -7/Garrison | Expanded RIF knowledge: Autoassimilate 10688 | -7/Garrison | Triggered checkpoint 10745 | -7/Garrison | Lost 3 parts (2u1w) 10774 | -7/Garrison | Garrison Relay disabled 10775 | -7/Garrison | Build established: Botlord-Mutant 10804 | -7/Garrison | Triggered checkpoint 10940 | -7/Garrison | Entered Factory 10940 | -7/Factory | Accompanied by 1 ally 11017 | -7/Factory | Discovered new exit (range 15) 11539 | -7/Factory | Cargo convoy interrupted 11570 | -7/Factory | Core integrity fell below 50% 11582 | -7/Factory | Core integrity fell below 20% 11589 | -7/Factory | Destroyed by H-55 Commando with Gauss Rifle Last Messages --------------- 11578_ R-06 Scavenger collects Flak Gun. 11578_ Penetrated by Slug. 11578_ Lgt. Antimatter Reactor destroyed. 11579_ M-28 Smith repairs H-55 Commando. 11581_ P-60 Hacker heat damages Unknown Device, Target Analyzer, Broken Shock Rifle, Broken Gravmag System. 11581_ Penetrated by Slug. 11581_ R-06 Scavenger collects Sml. Storage Unit. 11582_ M-28 Smith repairs H-55 Commando. 11583_ Slug penetrates Wall. 11584_ P-60 Hacker heat damages Remote Datajack, Gravmag System, Unknown Device. 11585_ P-60 Hacker heat short circuits Shock Rifle. 11585_ P-60 Hacker heat short circuits Backup Propulsion III. 11585_ R-06 Scavenger collects Unknown Device. 11585_ Dropped Huge Storage Unit. 11586_ P-60 Hacker heat short circuits Unknown Device. 11586_ P-60 Hacker heat damages Broken Shock Rifle. 11587_ Acquired Datajack. 11589_ Slug penetrates Wall. Map ----- +----------------------------------------------------+ | ????????????? ??????????????????????????????????? | | ????????????? ??????????????????????????????????? | | ????????????? "?? ??????????????????????????????? | | ????????????? "?? ??????????????????????????????? | | ????????????# "?? ??????????????????????????????? | | ????????????# ?? ??????????????????????????????? | | ????????????+ """ "?????????????????????????????? | | ????????????# """ "?? ??????????????????????? | | ????????????# """ """ #?????????????????????? | | ????????????# #?????????????????????? | | ????????????# """ """ #?????????????????????? | | ????????????# """ """ #?????????????????????? | | ????????????# """ """ #?????????????????????? | | ????????????# #?????????????????????? | | ############# """ """ #?????????????????????? | | """ """ +?????????????????????? | | ############# """ %"" #?????????????????????? | | ????????????# #?????????????????????? | | ????????????# """ """ #############?????????? | | ######??????# """%%%% !]]*]! ????????? | | ????# """!""% ]*]%]*]! %????????? | | """" ""???# [% % !!* | ]*]!!%%""????????? | | """" ""???# !![!![ %! ]!*]]%%""????????? | | """" """??# ####%|[ph/!! =]%=! ""????????? | | """" """" # ###########/#### =[ ""????????? | | # ???# !@!#???? ! ""????????? | | """" """" # ???# ] #??????? "?????????? | | """" """??# ???# #?????????? ??????????? | | """" """??# ???# ] #?????????????????????? | | """" """" # ???# #?????????????????????? | | # ???# """ !#?????????????????????? | | ! ! # ???# """"" #?????????????????????? | | +#######+####????# """"" !#?????????????????????? | | #???????????????###########?????????????????????? | | #???????????????????????????????????????????????? | | #???????????????????????????????????????????????? | | #???????????????????????????????????????????????? | | ####### #???????????????????????????????????????? | | ##??????????????????????????????????????? | | ?????????????????????????????????????? | | ?????????????????????????????????????? | | ?????????????????????????????????????? | | ^ ?????????????????????????????????????? | | ?????????????????????????????????????? | | """" ?????????????????????????????????????? | | """" ??????????????????????????????????????? | | """" ???????????????????????????????????????? | | """" [== ???????????????a??????????????????????? | | /== ??????????????????????????????????????? | | /= ??????????????????????????????????????? | +----------------------------------------------------+ Best States ------------- Heat Dissipation 53 Energy Generation 21 Energy Capacity 290 Matter Stores 300 Matter Capacity 300 Sight Range 16 Terrain Scan Density 10 Jamming Range 12 Armor Coverage 375 Resistance: KI 20 Evasion (%) 55 Target Analysis 5 Recoil Reduction 4 Salvage Targeting 1 Relay Coupler Types 4 Relay Coupler Value 96 Item Schematics ----------------- None Robot Schematics ------------------ None Fabricated ------------ Nothing Alien Tech Used ----------------- None Achievements -------------- None Challenges ------------ None Game ------ Seed RecyclingPhaseScanner Manual? 0 Play Time 01:11:33 Cumulative 247.5 hours Start 2023.09.18 @ 13:50:12 End 2023.09.18 @ 15:03:27 Sessions 1 Manual Loads 0 Difficulty Rogue Special Mode None Game No. 330 Rogue 330 Adventurer 0 Explorer 0 Win Type - Total 7 Types 6/0/0/1/0/0/0/0/0 Lore% 81 Gallery% 87 Achievement% 69 Wizard Run 0 Options --------- ASCII 0 Keyboard 0 Movement Numpad Keybinds 0 Fullscreen 2 Font 18/SmallcapsGlow Map View 76x50 Tactical HUD 1 Map Filters NONE Filters NONE Steam 1 RUN: fdada481-aa60-46bd-8834-0325eaa5e5b7